bitfinex-derivatives/quotes_BTCF0:USTF0_20250528
["timestamp","ask_amount","ask_price","bid_price","bid_amount"]
[1748435232941,0.21460987,109010.0,109000.0,3.60614097]
[1748435233142,0.24670987,109010.0,109000.0,3.60614097]
[1748435235747,0.24670987,109010.0,109000.0,3.14822097]
[1748435235943,0.24670987,109010.0,109000.0,3.36753738]
[1748435236150,0.24670987,109010.0,109000.0,3.60506097]
[1748435236941,0.24670987,109010.0,109000.0,2.88346097]
[1748435237141,0.24670987,109010.0,109000.0,3.60506097]
[1748435237650,0.24670987,109010.0,109000.0,3.48869698]
[1748435238843,0.24670987,109010.0,109000.0,3.36753738]
[1748435239048,0.24670987,109010.0,109000.0,3.48869698]
[1748435239250,0.24670987,109010.0,109000.0,3.60506097]
[1748435239458,0.27980987,109010.0,109000.0,3.60506097]
[1748435240050,0.27980987,109010.0,109000.0,3.48832797]
[1748435240557,0.27980987,109010.0,109000.0,3.56682872]
[1748435241247,0.27980987,109010.0,109000.0,3.10998872]
[1748435241547,0.27980987,109010.0,109000.0,3.56514872]
[1748435242254,0.27980987,109010.0,109000.0,3.38175022]
[1748435242551,0.27980987,109010.0,109000.0,3.56514902]
[1748435242854,0.27980987,109010.0,109000.0,3.26059062]
[1748435243048,0.27980987,109010.0,109000.0,2.80543062]
[1748435243250,0.27980987,109010.0,109000.0,1.30543062]
[1748435243948,0.31220987,109010.0,109000.0,1.20077154]
[1748435244157,0.43336947,109010.0,109000.0,1.16711367]
[1748435244347,0.43336947,109010.0,109000.0,1.16671754]
[1748435244749,0.43336947,109010.0,109000.0,1.06204244]
[1748435244945,0.43336947,109010.0,109000.0,1.16672607]
[1748435245145,0.31220987,109010.0,109000.0,1.16672607]
[1748435245346,0.31220987,109010.0,109000.0,1.16672176]
[1748435245553,0.31220987,109010.0,109000.0,1.28788136]
[1748435245741,0.27980987,109010.0,109000.0,1.24670204]
[1748435246059,0.27968987,109010.0,109000.0,1.24670204]
[1748435246353,0.27980987,109010.0,109000.0,1.24670204]
[1748435247952,0.27980987,109010.0,109000.0,1.35137306]
[1748435248356,0.27980987,109010.0,109000.0,1.35137301]
[1748435248660,0.27980987,109010.0,109000.0,1.35136188]
[1748435248953,0.27980987,109010.0,109000.0,1.23020228]
[1748435249156,0.27980987,109010.0,109000.0,1.12553131]
[1748435249869,0.27980987,109010.0,109000.0,1.24669091]
[1748435250255,0.27980987,109010.0,109000.0,1.3630549]
[1748435250557,0.27980987,109010.0,109000.0,1.12888087]
[1748435251246,0.27980987,109010.0,109000.0,0.40728087]
[1748435251558,0.27980987,109010.0,109000.0,1.12888087]
[1748435253047,0.27980987,109010.0,109000.0,2.62888087]
[1748435253253,0.27980987,109010.0,109000.0,3.34057234]
[1748435253459,0.24658987,109010.0,109000.0,3.34057234]
[1748435253651,0.24670987,109010.0,109000.0,3.34057234]
[1748435253962,0.24658987,109010.0,109000.0,3.34057234]
[1748435254165,0.24670987,109010.0,109000.0,3.34057234]
[1748435254856,0.24670987,109010.0,109000.0,3.28817071]
[1748435255461,0.24670987,109010.0,109000.0,3.28813071]
[1748435256355,0.24670987,109010.0,109000.0,3.45835231]
[1748435256562,0.24670987,109010.0,109000.0,3.56301846]
[1748435256967,0.24670987,109010.0,109000.0,3.40259722]
[1748435257462,0.24658987,109010.0,109000.0,3.40259722]
[1748435257666,0.24670987,109010.0,109000.0,3.40259722]
[1748435257959,0.21460987,109010.0,109000.0,3.40259722]
[1748435258162,0.21460987,109010.0,109000.0,1.90259722]
[1748435258364,0.21448987,109010.0,109000.0,1.90260083]
[1748435258569,0.21460987,109010.0,109000.0,3.40260083]
[1748435259058,0.24650987,109010.0,109000.0,3.40260083]
[1748435260064,0.24650987,109010.0,109000.0,3.35363738]
[1748435260264,0.24650987,109010.0,109000.0,3.40243481]
[1748435260663,0.24650987,109010.0,109000.0,3.33692814]
[1748435260961,0.24650987,109010.0,109000.0,3.40242981]
[1748435261662,0.24650987,109010.0,109000.0,3.40242829]
[1748435263271,0.24650987,109010.0,109000.0,3.28126869]
[1748435263450,0.24650987,109010.0,109000.0,3.40242829]
[1748435263650,0.24650987,109010.0,109000.0,3.28126869]
[1748435263851,0.24650987,109010.0,109000.0,3.40242829]
[1748435264064,0.24650987,109010.0,109000.0,3.48415232]
[1748435265665,0.24650987,109010.0,109000.0,3.48521321]
[1748435266956,0.24650987,109010.0,109000.0,3.48517321]
[1748435267261,1.1500683,109040.0,109030.0,0.183348]
[1748435267262,0.2291845,109040.0,109030.0,0.183348]
[1748435267469,0.2603845,109040.0,109030.0,2.15751468]
[1748435267658,0.2605045,109040.0,109030.0,2.23900307]
[1748435267849,0.2603845,109040.0,109030.0,3.73900307]
[1748435268053,0.2605045,109040.0,109030.0,3.86887858]
[1748435268462,0.2930045,109040.0,109030.0,3.85510307]
[1748435269465,0.2930045,109040.0,109030.0,3.82876285]
[1748435269765,0.2930045,109040.0,109030.0,3.83076285]
[1748435270362,0.2930045,109040.0,109030.0,3.71466285]
[1748435271169,0.2930045,109040.0,109030.0,3.59350325]
[1748435271469,0.2930045,109040.0,109030.0,3.71466285]
[1748435271872,0.2930045,109040.0,109030.0,3.83076285]
[1748435272374,0.2930045,109040.0,109030.0,3.71466285]
[1748435272563,0.2930045,109040.0,109030.0,3.75120864]
[1748435273271,0.2930045,109040.0,109030.0,3.76472867]
[1748435273568,0.2605045,109040.0,109030.0,3.76472867]
[1748435273964,0.2603845,109040.0,109030.0,3.76472867]
[1748435274174,0.2605045,109040.0,109030.0,3.67205372]
[1748435274472,0.2605045,109040.0,109030.0,3.55064464]
[1748435274766,0.2605045,109040.0,109030.0,3.67180424]
[1748435275271,0.2605045,109040.0,109030.0,3.76543987]
[1748435276666,0.2605045,109040.0,109030.0,3.76743987]
[1748435277374,0.2605045,109040.0,109030.0,3.77906355]
[1748435277573,0.2906045,109040.0,109030.0,3.77906355]
[1748435278668,0.2906045,109040.0,109030.0,3.7041076]
[1748435278862,0.2906045,109040.0,109030.0,3.77904057]
[1748435280466,0.2906045,109040.0,109030.0,3.83485947]
[1748435280666,0.2906045,109040.0,109030.0,3.38157947]
[1748435280865,0.2906045,109040.0,109030.0,3.83465947]
[1748435281179,0.2906045,109040.0,109030.0,2.94632]
[1748435281367,0.2906045,109040.0,109030.0,3.29171721]
[1748435281368,0.4117641,109040.0,109030.0,3.29171721]
[1748435281571,0.4117641,109040.0,109030.0,3.372768]
[1748435281870,0.4117641,109040.0,109030.0,3.340368]
[1748435282073,0.4117641,109040.0,109030.0,3.41939542]
[1748435282476,0.4117641,109040.0,109030.0,3.35197808]
[1748435282665,0.2906045,109040.0,109030.0,3.35197808]
[1748435282870,0.4117641,109040.0,109030.0,3.35197808]
[1748435283068,0.4117641,109040.0,109030.0,3.35201263]
[1748435283368,0.4117641,109040.0,109030.0,3.12272433]
[1748435283881,0.2906045,109040.0,109030.0,3.12272433]
[1748435284066,0.4117641,109040.0,109030.0,3.12272433]
[1748435284262,0.2906045,109040.0,109030.0,3.12272433]
[1748435284475,0.4117641,109040.0,109030.0,2.9807355]
[1748435285376,0.4117641,109040.0,109030.0,3.03659374]
[1748435285574,0.4117641,109040.0,109030.0,2.49089287]
[1748435285765,0.7725641,109040.0,109030.0,0.64479481]
[1748435285971,0.7725641,109040.0,109030.0,0.53677185]
[1748435286279,0.7725641,109040.0,109030.0,2.03677185]
[1748435287179,0.7725641,109040.0,109030.0,0.43682482]
[1748435287474,0.7725641,109040.0,109030.0,2.03682482]
[1748435287771,0.4117641,109040.0,109030.0,2.03682482]
[1748435287977,0.7725641,109040.0,109030.0,2.03682482]
[1748435288477,0.7725641,109040.0,109030.0,1.93682482]
[1748435288679,0.7725641,109040.0,109030.0,1.93482482]
[1748435288869,0.7725641,109040.0,109030.0,1.94210701]
[1748435289069,0.7725641,109040.0,109030.0,1.93910701]
[1748435289673,0.4117641,109040.0,109030.0,2.02029698]
[1748435289880,0.4116441,109040.0,109030.0,2.02029698]
[1748435290080,0.4117641,109040.0,109030.0,2.02029698]
[1748435291372,0.4117641,109040.0,109030.0,2.38109698]
[1748435291575,0.4117641,109040.0,109030.0,2.38111337]
[1748435293875,0.4116441,109040.0,109030.0,2.38111337]
[1748435294082,0.4117641,109040.0,109030.0,2.41131337]
[1748435294283,0.4117641,109040.0,109030.0,2.44301337]
[1748435294888,0.4117641,109040.0,109030.0,2.3618234]
[1748435295678,0.2906045,109040.0,109030.0,2.3618234]
[1748435295885,0.2906045,109040.0,109030.0,2.86698812]
[1748435296076,0.2906045,109040.0,109030.0,2.99134204]
[1748435296486,0.2906045,109040.0,109030.0,3.04749376]
[1748435297184,0.2906045,109040.0,109030.0,3.16865336]
[1748435297785,0.2906045,109040.0,109030.0,3.07577101]
[1748435298171,0.2906045,109040.0,109030.0,3.11266148]
[1748435298375,0.2906045,109040.0,109030.0,2.99150188]
[1748435298576,0.2906045,109040.0,109030.0,2.89862423]
[1748435298975,0.2906045,109040.0,109030.0,2.99150188]
[1748435299191,0.2906045,109040.0,109030.0,3.06643485]
[1748435300087,0.2906045,109040.0,109030.0,3.24358163]
[1748435300289,0.2906045,109040.0,109030.0,3.24359006]
[1748435300887,0.2906045,109040.0,109030.0,3.15071241]
[1748435301088,0.2906045,109040.0,109030.0,3.26681241]
[1748435301790,0.2906045,109040.0,109030.0,3.15071241]
[1748435301985,0.2906045,109040.0,109030.0,3.25521442]
[1748435302183,0.2906045,109040.0,109030.0,3.18761557]
[1748435303589,0.2906045,109040.0,109030.0,3.24361526]
[1748435304683,0.2906045,109040.0,109030.0,3.18763198]
[1748435307495,0.2906045,109040.0,109030.0,2.73463198]
[1748435307688,0.2906045,109040.0,109030.0,3.18755198]
[1748435307894,0.2906045,109040.0,109030.0,3.24364394]
[1748435308095,0.2906045,109040.0,109030.0,3.24364405]
[1748435309097,0.2906045,109040.0,109030.0,3.15074082]
[1748435309291,0.2906045,109040.0,109030.0,2.69782082]
[1748435309482,0.2906045,109040.0,109030.0,2.78990082]
[1748435309985,0.2906045,109040.0,109030.0,1.28990082]
[1748435310193,0.2906045,109040.0,109030.0,1.16874122]
[1748435310697,0.2906045,109040.0,109030.0,1.28990082]
[1748435311196,0.2906045,109040.0,109030.0,1.39440283]
[1748435311991,0.2906045,109040.0,109030.0,1.27324323]
[1748435312188,0.2906045,109040.0,109030.0,0.87402994]
[1748435312393,0.2906045,109040.0,109030.0,1.32690994]
[1748435312895,0.2906045,109040.0,109030.0,1.23385556]
[1748435313291,0.2906045,109040.0,109030.0,1.23428241]
[1748435313498,0.2906045,109040.0,109030.0,1.32733679]
[1748435314090,0.3228045,109040.0,109030.0,1.20617719]
[1748435314399,0.3228045,109040.0,109030.0,1.32733679]
[1748435316093,0.3228045,109040.0,109030.0,2.82733679]
[1748435316293,0.3228045,109040.0,109030.0,2.70617719]
[1748435316588,0.3228045,109040.0,109030.0,2.61312281]
[1748435317801,0.3228045,109040.0,109030.0,2.61314935]
[1748435318001,0.44390841,109040.0,109030.0,2.73425326]
[1748435318300,0.44390841,109040.0,109030.0,2.82730764]
[1748435318994,0.44390841,109040.0,109030.0,2.79081782]
[1748435319195,0.44390841,109040.0,109030.0,2.89531983]
[1748435320391,0.44390841,109040.0,109030.0,2.89532887]
[1748435320794,0.41170841,109040.0,109030.0,2.89532887]
[1748435321693,0.41170841,109040.0,109030.0,3.28088331]
[1748435322094,0.41170841,109040.0,109030.0,3.28087616]
[1748435322301,0.41170841,109040.0,109030.0,2.79897225]
[1748435322600,0.41170841,109040.0,109030.0,2.92007616]
[1748435323202,0.41170841,109040.0,109030.0,2.79897225]
[1748435323402,0.41170841,109040.0,109030.0,2.92007616]
[1748435325800,0.53281232,109040.0,109030.0,2.92007616]
[1748435326497,0.53281232,109040.0,109030.0,2.92007852]
[1748435327900,0.41170841,109040.0,109030.0,2.92007852]
[1748435328403,0.41170841,109040.0,109030.0,2.84669672]
[1748435328599,0.44280841,109040.0,109030.0,2.86472536]
[1748435328800,0.56391232,109040.0,109030.0,2.87759672]
[1748435329305,0.41170841,109040.0,109030.0,2.90759672]
[1748435329606,0.2906045,109040.0,109030.0,2.90759672]
[1748435329803,0.41170841,109040.0,109030.0,3.26839672]
[1748435330104,0.41170841,109040.0,109030.0,3.16363852]
[1748435331006,0.41170841,109040.0,109030.0,3.16363674]
[1748435331392,0.41170841,109040.0,109030.0,2.8148431]
[1748435331598,0.45045435,109040.0,109030.0,2.8148431]
[1748435331799,0.57155826,109040.0,109030.0,2.8148431]
[1748435332994,0.45045435,109040.0,109030.0,2.8148431]
[1748435333715,0.57155826,109040.0,109030.0,2.24113919]
[1748435333897,0.32935044,109040.0,109030.0,2.69369919]
[1748435334207,0.57152155,109040.0,109030.0,2.24113919]
[1748435334408,0.57152155,109040.0,109030.0,2.69369919]
[1748435334602,0.57152155,109040.0,109030.0,2.8148031]
[1748435334803,0.57152155,109040.0,109030.0,2.69369919]
[1748435335207,0.57152155,109040.0,109030.0,2.69370646]
[1748435335208,0.57152546,109040.0,109030.0,2.69370646]
[1748435336404,0.53281232,109040.0,109030.0,2.69370646]
[1748435336609,0.53281232,109040.0,109030.0,2.7735593]
[1748435337612,0.53281232,109040.0,109030.0,2.72110767]
[1748435337910,0.53281232,109040.0,109030.0,2.77352794]
[1748435338111,0.53281232,109040.0,109030.0,2.26854767]
[1748435338510,0.53281232,109040.0,109030.0,2.72102767]
[1748435339513,0.53281232,109040.0,109030.0,2.72104138]
[1748435340416,0.53281232,109040.0,109030.0,2.78636255]
[1748435340610,0.53281232,109040.0,109030.0,2.33388255]
[1748435340917,0.53281232,109040.0,109030.0,2.68160209]
[1748435341409,0.53281232,109040.0,109030.0,2.78638745]
[1748435341606,0.53281232,109040.0,109030.0,2.72106628]
[1748435342518,0.53281232,109040.0,109030.0,2.77352642]
[1748435342813,0.89361232,109040.0,109030.0,2.74348642]
[1748435343013,0.89361232,109040.0,109030.0,2.29104642]
[1748435343313,0.89361232,109040.0,109030.0,2.74344642]
[1748435343916,0.89361232,109040.0,109030.0,2.77512865]
[1748435344112,0.89361232,109040.0,109030.0,2.32272865]
[1748435344414,0.89361232,109040.0,109030.0,2.29102865]
[1748435344616,0.92591232,109040.0,109030.0,2.29102865]
[1748435345102,0.56511232,109040.0,109030.0,2.32252865]
[1748435345301,0.92591232,109040.0,109030.0,2.32252865]
[1748435345716,0.92579232,109040.0,109030.0,2.32252865]
[1748435346117,0.92579232,109040.0,109030.0,2.22252865]
[1748435346505,0.92579232,109040.0,109030.0,2.14759568]
[1748435348313,0.92579232,109040.0,109030.0,2.14759046]
[1748435352724,0.92579232,109040.0,109030.0,2.14758436]
[1748435352920,0.92579232,109040.0,109030.0,2.042799]
[1748435353720,0.92559232,109040.0,109030.0,1.980399]
[1748435354939,0.92559232,109040.0,109030.0,0.480399]
[1748435355621,0.92559232,109040.0,109030.0,0.57351855]
[1748435355826,0.92559232,109040.0,109030.0,0.480399]
[1748435357025,0.92559232,109040.0,109030.0,0.4804011]
[1748435357721,0.96436365,109040.0,109030.0,0.57351831]
[1748435358227,0.92559232,109040.0,109030.0,0.4804011]
[1748435358423,1.08546759,109040.0,109030.0,0.51857156]
[1748435358614,1.44626759,109040.0,109030.0,0.26451057]
[1748435358817,1.44626759,109040.0,109030.0,0.20868707]
[1748435359026,1.44626759,109040.0,109030.0,0.35642307]
[1748435359822,1.44626759,109040.0,109030.0,0.34476189]
[1748435360328,1.32516368,109040.0,109030.0,0.34476189]
[1748435360532,1.77724368,109040.0,109030.0,0.34476189]
[1748435361328,1.32514376,109040.0,109030.0,0.3214661]
[1748435361530,1.77722376,109040.0,109030.0,0.3214661]
[1748435361833,1.32514376,109040.0,109030.0,0.3214661]
[1748435362330,1.77722376,109040.0,109030.0,0.3214661]
[1748435362722,1.89832767,109040.0,109030.0,0.3214661]
[1748435365037,1.89824767,109040.0,109030.0,0.3214661]
[1748435365329,1.77714376,109040.0,109030.0,0.33312728]
[1748435365524,1.77714376,109040.0,109030.0,0.36532728]
[1748435367120,1.77710376,109040.0,109030.0,0.41501109]
[1748435367534,1.77710376,109040.0,109030.0,0.32188381]
[1748435367925,1.77710376,109040.0,109030.0,0.41501109]
[1748435368530,1.41630376,109040.0,109030.0,0.41501109]
[1748435368730,1.53740767,109040.0,109030.0,0.41501109]
[1748435370241,1.53739844,109040.0,109030.0,0.415008]
[1748435370432,1.08543844,109040.0,109030.0,0.415008]
[1748435370631,1.41621453,109040.0,109030.0,0.447108]
[1748435372835,1.41621453,109040.0,109030.0,0.50367928]
[1748435373132,1.41613453,109040.0,109030.0,0.50367928]
[1748435373834,1.41613453,109040.0,109030.0,0.447108]
[1748435374033,1.41613453,109040.0,109030.0,0.35398072]
[1748435374438,1.4161348,109040.0,109030.0,0.35398078]
[1748435374827,1.4160948,109040.0,109030.0,0.43538112]
[1748435376242,1.17388698,109040.0,109030.0,0.43538112]
[1748435376440,0.68982698,109040.0,109030.0,0.47508469]
[1748435376631,1.30868841,109040.0,109030.0,0.71950009]
[1748435376826,1.30880841,109040.0,109030.0,0.60971082]
[1748435377034,1.33950841,109040.0,109030.0,0.60971082]
[1748435377532,1.33946841,109040.0,109030.0,0.60971082]
[1748435377732,0.97866841,109040.0,109030.0,0.60971082]
[1748435378740,0.97866841,109040.0,109030.0,0.61052978]
[1748435380436,0.52698841,109040.0,109030.0,0.61052978]
[1748435380742,0.97858841,109040.0,109030.0,0.61052978]
[1748435381334,0.97858841,109040.0,109030.0,0.49442978]
[1748435381740,1.33938841,109040.0,109030.0,0.49442978]
[1748435383128,1.33938841,109040.0,109030.0,0.58746294]
[1748435383333,1.33938841,109040.0,109030.0,0.38496276]
[1748435383638,0.89401232,109040.0,109030.0,0.23667492]
[1748435383826,1.49911137,109040.0,109030.0,0.38496276]
[1748435384040,1.04759137,109040.0,109030.0,0.38496276]
[1748435384233,1.49911137,109040.0,109030.0,0.38496276]
[1748435384841,1.25690355,109040.0,109030.0,0.38496276]
[1748435385027,1.49911137,109040.0,109030.0,0.38496276]
[1748435385233,1.49907137,109040.0,109030.0,0.38496276]
[1748435385643,1.49907137,109040.0,109030.0,0.46637833]
[1748435385839,1.49903137,109040.0,109030.0,0.46637833]
[1748435387643,1.37792746,109040.0,109030.0,0.46639669]
[1748435387943,1.37792746,109040.0,109030.0,0.50608503]
[1748435388442,1.37792746,109040.0,109030.0,0.38498112]
[1748435389641,1.33918841,109040.0,109030.0,0.53047442]
[1748435390442,1.2175645,109040.0,109030.0,2.19050935]
[1748435390743,1.33866841,109040.0,109030.0,2.19050935]
[1748435391246,1.2175645,109040.0,109030.0,2.19050935]
[1748435391438,1.33866841,109040.0,109030.0,2.19050935]
[1748435391745,1.33866841,109040.0,109030.0,1.99597738]
[1748435391746,1.37741277,109040.0,109030.0,1.99597738]
[1748435391943,1.01661277,109040.0,109030.0,1.99597738]
[1748435392464,0.56529277,109040.0,109030.0,1.99597738]
[1748435392742,1.01653277,109040.0,109030.0,1.99597738]
[1748435394948,1.01653277,109040.0,109030.0,2.08667738]
[1748435396142,0.97778841,109040.0,109030.0,2.03659399]
[1748435396347,1.01653563,109040.0,109030.0,2.08667947]
[1748435400556,0.97758841,109040.0,109030.0,1.96558329]
[1748435400861,1.01622192,109040.0,109030.0,2.13914734]
[1748435401154,1.01622192,109040.0,109030.0,2.49994734]
[1748435401155,0.56530192,109040.0,109030.0,2.49994734]
[1748435401341,0.97742841,109040.0,109030.0,2.49994734]
[1748435401544,0.97754841,109040.0,109030.0,2.49994734]
[1748435401739,0.97754841,109040.0,109030.0,2.5686212]
[1748435401946,0.52642841,109040.0,109030.0,2.5686212]
[1748435402147,0.49584841,109040.0,109030.0,2.56861495]
[1748435402345,0.94668841,109040.0,109030.0,2.56861495]
[1748435402546,0.8257045,109040.0,109030.0,2.56861495]
[1748435403048,0.94680841,109040.0,109030.0,2.56861495]
[1748435403555,0.42016147,109040.0,109030.0,2.95091741]
[1748435403855,0.38140841,109040.0,109030.0,2.90082522]
[1748435404756,0.38140841,109040.0,109030.0,2.95092529]
[1748435405345,0.38140841,109040.0,109030.0,2.90082522]
[1748435405545,0.38140841,109040.0,109030.0,2.95093135]
[1748435405747,0.41270841,109040.0,109030.0,2.95093135]
[1748435407160,0.41270841,109040.0,109030.0,1.45093135]
[1748435407472,0.41270841,109040.0,109030.0,1.09013135]
[1748435407647,0.45146912,109040.0,109030.0,1.09013135]
[1748435408350,0.41270841,109040.0,109030.0,1.06574345]
[1748435409347,0.41270841,109040.0,109030.0,0.61478345]
[1748435409851,0.41270841,109040.0,109030.0,0.7194347]
[1748435410049,0.2916045,109040.0,109030.0,0.7194347]
[1748435410247,0.41270841,109040.0,109030.0,0.7194347]
[1748435411550,0.41270841,109040.0,109030.0,0.59833079]
[1748435411758,0.41270841,109040.0,109030.0,0.7194347]
[1748435411954,0.77350841,109040.0,109030.0,0.7194347]
[1748435412252,0.89461232,109040.0,109030.0,0.49368649]
[1748435412450,0.6835045,109040.0,109030.0,0.6147904]
[1748435412651,0.80460841,109040.0,109030.0,0.6147904]
[1748435413253,0.80460841,109040.0,109030.0,2.1147904]
[1748435414255,0.80460841,109040.0,109030.0,2.21944165]
[1748435414458,0.6835045,109040.0,109030.0,2.21944165]
[1748435414756,0.80460841,109040.0,109030.0,2.21944165]
[1748435417146,0.80460841,109040.0,109030.0,2.18764165]
[1748435417354,0.80460841,109040.0,109030.0,2.16174165]
[1748435417658,1.37619232,109040.0,109030.0,2.16175294]
[1748435417849,1.25508841,109040.0,109030.0,2.16175294]
[1748435418050,0.92571232,109040.0,109030.0,2.00764903]
[1748435418359,1.37619232,109040.0,109030.0,2.12875294]
[1748435418949,1.37619232,109040.0,109030.0,2.00764903]
[1748435421455,1.37619232,109040.0,109030.0,2.03774903]
[1748435421851,1.37619232,109040.0,109030.0,2.0377584]
[1748435422153,1.37619232,109040.0,109030.0,1.96915812]
[1748435422154,1.41496567,109040.0,109030.0,1.96915812]
[1748435422763,1.41496567,109040.0,109030.0,0.46915812]
[1748435424465,1.41496567,109040.0,109030.0,0.59026203]
[1748435424966,0.96448567,109040.0,109030.0,0.37603986]
[1748435425168,1.41476567,109040.0,109030.0,0.37603986]
[1748435426369,1.41476567,109040.0,109030.0,0.37603956]
[1748435427163,1.17255785,109040.0,109030.0,0.37603956]
[1748435427363,1.41476567,109040.0,109030.0,0.37603956]
[1748435428770,1.41476567,109040.0,109030.0,0.43905782]
[1748435430672,1.41476356,109040.0,109030.0,0.43905969]
[1748435431269,1.41476356,109040.0,109030.0,0.29348129]
[1748435431975,1.41476356,109040.0,109030.0,0.43905969]
[1748435433776,1.17255574,109040.0,109030.0,0.43905969]
[1748435434079,1.41476356,109040.0,109030.0,0.43905969]
[1748435434377,1.41476356,109040.0,109030.0,0.29348129]
[1748435434563,1.41476356,109040.0,109030.0,0.38659955]
[1748435435076,1.41493427,109040.0,109030.0,0.38659489]
[1748435436779,1.41493427,109040.0,109030.0,0.29347663]
[1748435436976,1.41493427,109040.0,109030.0,0.21854366]
[1748435437278,1.41493427,109040.0,109030.0,0.11393564]
[1748435437483,0.1833482,109030.0,109020.0,0.08160408]
[1748435437672,0.91171406,109030.0,109020.0,0.45664461]
[1748435438273,0.91171406,109030.0,109020.0,0.48804461]
[1748435438874,0.91171406,109030.0,109020.0,0.60914852]
[1748435439071,0.91171406,109030.0,109020.0,0.45664461]
[1748435439279,0.91171406,109030.0,109020.0,0.45663844]
[1748435440783,0.91170403,109030.0,109020.0,0.45663844]
[1748435442074,1.36142403,109030.0,109020.0,0.60964235]
[1748435442279,1.36142403,109030.0,109020.0,0.63554235]
[1748435442481,1.36142403,109030.0,109020.0,0.55407645]
[1748435442684,1.36138403,109030.0,109020.0,0.55407645]
[1748435442985,1.32245211,109030.0,109020.0,0.64719471]
[1748435443682,0.8104482,109030.0,109020.0,0.69965485]
[1748435443984,0.8104482,109030.0,109020.0,0.73065485]
[1748435443985,0.93155211,109030.0,109020.0,0.73065485]
[1748435444180,0.93151211,109030.0,109020.0,0.73065485]
[1748435444382,0.93151211,109030.0,109020.0,0.69455501]
[1748435444582,0.81771211,109030.0,109020.0,0.79920626]
[1748435444786,0.36807211,109030.0,109020.0,0.79920626]
[1748435445082,0.81771211,109030.0,109020.0,0.79920626]
[1748435445380,0.2468482,109030.0,109020.0,1.28111017]
[1748435445582,0.36795211,109030.0,109020.0,1.16000626]
[1748435445784,0.2469682,109030.0,109020.0,1.28111017]
[1748435445984,0.2469682,109030.0,109020.0,1.17645892]
[1748435446378,0.2469682,109030.0,109020.0,1.26948347]
[1748435446579,0.2469682,109030.0,109020.0,1.21246505]
[1748435452081,0.2469682,109030.0,109020.0,1.16236366]
[1748435452286,0.2469682,109030.0,109020.0,1.21243435]
[1748435453588,0.2469682,109030.0,109020.0,1.71885027]
[1748435454293,0.2469682,109030.0,109020.0,1.62582572]
[1748435454589,0.2469682,109030.0,109020.0,1.73047697]
[1748435455185,0.2469682,109030.0,109020.0,1.48826915]
[1748435455391,0.2469682,109030.0,109020.0,1.20082083]
[1748435456682,0.2469682,109030.0,109020.0,0.95861301]
[1748435456885,0.2469682,109030.0,109020.0,1.20082083]
[1748435457501,0.2469682,109030.0,109020.0,0.90854232]
[1748435457685,0.2469682,109030.0,109020.0,1.06933911]
[1748435458194,0.2469682,109030.0,109020.0,0.82713129]
[1748435458494,0.2469682,109030.0,109020.0,1.06933911]
[1748435460009,0.2468482,109030.0,109020.0,1.06933911]
[1748435460295,0.2469682,109030.0,109020.0,1.06933911]
[1748435461597,0.36807211,109030.0,109020.0,1.06933911]
[1748435461795,0.36807211,109030.0,109020.0,1.21245662]
[1748435461987,0.36807211,109030.0,109020.0,1.09135271]
[1748435462187,0.36807211,109030.0,109020.0,1.05533424]
[1748435463497,0.36807211,109030.0,109020.0,1.15998549]
[1748435463889,1.17779211,109030.0,109020.0,0.69879774]
[1748435464188,0.76047211,109030.0,109020.0,0.69880189]
[1748435464387,1.20939211,109030.0,109020.0,0.69880189]
[1748435465190,1.0882882,109030.0,109020.0,0.71038549]
[1748435465396,1.24059211,109030.0,109020.0,0.74248549]
[1748435465893,0.3097682,109030.0,109020.0,0.8635894]
[1748435466094,0.2781682,109030.0,109020.0,1.2819894]
[1748435466288,0.2781682,109030.0,109020.0,1.32554957]
[1748435466489,0.2781682,109030.0,109020.0,1.09979441]
[1748435466690,0.2781682,109030.0,109020.0,1.11265544]
[1748435466900,0.2781682,109030.0,109020.0,2.61265544]
[1748435467304,0.2781682,109030.0,109020.0,2.73375935]
[1748435467509,0.2781682,109030.0,109020.0,2.84985935]
[1748435467800,0.2781682,109030.0,109020.0,2.73375935]
[1748435468002,0.2781682,109030.0,109020.0,2.89086043]
[1748435468187,0.2781682,109030.0,109020.0,2.82553926]
[1748435468702,0.2781682,109030.0,109020.0,2.6928046]
[1748435468897,0.2781682,109030.0,109020.0,2.60082717]
[1748435469400,0.2781682,109030.0,109020.0,2.99835665]
[1748435469594,0.2781682,109030.0,109020.0,2.85093749]
[1748435470292,0.2781682,109030.0,109020.0,2.79712224]
[1748435470491,0.2780482,109030.0,109020.0,2.61375634]
[1748435471290,0.2781682,109030.0,109020.0,2.61375634]
[1748435471505,0.2781682,109030.0,109020.0,2.92912669]
[1748435471691,0.2919182,109030.0,109020.0,2.92912669]
[1748435472199,0.2917982,109030.0,109020.0,2.92912669]
[1748435472505,0.2919182,109030.0,109020.0,2.92912669]
[1748435473005,0.2919182,109030.0,109020.0,2.88556332]
[1748435473201,0.2919182,109030.0,109020.0,2.92912999]
[1748435474004,0.2919182,109030.0,109020.0,2.87671599]
[1748435474909,0.2919182,109030.0,109020.0,2.79529066]
[1748435475092,0.2919182,109030.0,109020.0,2.85094282]
[1748435476306,0.2607182,109030.0,109020.0,2.85094282]
[1748435476807,0.2919182,109030.0,109020.0,2.85094282]
[1748435477008,0.2919182,109030.0,109020.0,2.73484282]
[1748435477403,0.2919182,109030.0,109020.0,2.77030568]
[1748435478508,0.2919182,109030.0,109020.0,2.77030157]
[1748435478905,0.2919182,109030.0,109020.0,2.95366747]
[1748435479503,0.2919182,109030.0,109020.0,2.64919766]
[1748435479504,0.41302211,109030.0,109020.0,2.64919766]
[1748435479699,0.44432211,109030.0,109020.0,2.71843115]
[1748435480206,0.44432211,109030.0,109020.0,2.59732724]
[1748435480408,0.44432211,109030.0,109020.0,2.71843115]
[1748435481213,0.44432211,109030.0,109020.0,2.68673115]
[1748435481599,0.44432211,109030.0,109020.0,2.68672417]
[1748435482713,0.44432211,109030.0,109020.0,2.71732417]
[1748435483315,0.3232182,109030.0,109020.0,2.83842808]
[1748435484111,0.3232182,109030.0,109020.0,2.73373584]
[1748435484719,0.2919182,109030.0,109020.0,2.91710174]
[1748435484909,0.2919182,109030.0,109020.0,3.03320174]
[1748435485715,0.2919182,109030.0,109020.0,2.84983584]
[1748435485919,0.2919182,109030.0,109020.0,3.03319179]
[1748435487008,0.2919182,109030.0,109020.0,2.49151807]
[1748435487211,0.2919182,109030.0,109020.0,2.83841631]
[1748435488003,0.2919182,109030.0,109020.0,2.59620849]
[1748435488209,0.2919182,109030.0,109020.0,2.83841631]
[1748435488812,0.3223182,109030.0,109020.0,2.83841631]
[1748435489317,0.3223182,109030.0,109020.0,2.7173124]
[1748435489620,0.3223182,109030.0,109020.0,2.59620849]
[1748435489819,0.3223182,109030.0,109020.0,2.7173124]
[1748435491822,0.3223182,109030.0,109020.0,2.56419656]
[1748435492213,0.3223182,109030.0,109020.0,2.70717422]
[1748435493419,0.3223182,109030.0,109020.0,2.6024838]
[1748435494127,0.3223182,109030.0,109020.0,2.2416838]
[1748435494325,0.3223182,109030.0,109020.0,2.70718281]
[1748435494717,0.3223182,109030.0,109020.0,2.6024838]
[1748435496926,0.44342211,109030.0,109020.0,2.9937438]
[1748435497123,0.44342211,109030.0,109020.0,2.87263989]